{"text_format":"1","workbook":"xlsx","n_sheets":3,"sheets":["Munka1","Munka2","Munka3"],"not_rendered":{"charts":0,"images":0,"macros":1,"external_links":0,"defined_names":0,"comments":0,"pivot_tables":0},"unopened":[],"bounds":{"document_bytes":16777216,"sheet_cells":100000,"rows_first":2000,"rows_last":500,"rows_between":2000,"halvings":0,"cell_chars":16384,"cell_head_chars":4096},"cells_cut":0,"cells_raw":0,"read":"whole","date_system":"1900"}

{"sheet":"Munka1","index":0,"n_rows":95,"n_cols":7,"rows_kept":95,"cut":false,"hidden":false,"merged":[[77,1,77,3],[79,1,79,3],[81,1,81,3],[84,0,84,3],[75,1,75,3],[67,1,67,3],[61,1,61,3],[73,1,73,3],[49,1,49,3],[57,1,57,3],[51,1,51,3],[55,1,55,3],[63,1,63,3],[65,1,65,3],[69,1,69,3],[71,1,71,3],[43,1,43,3],[45,1,45,3],[47,1,47,3],[53,1,53,3],[59,1,59,3],[1,1,1,3],[3,1,3,3],[5,1,5,3],[7,1,7,3],[9,1,9,3],[39,1,39,3],[21,1,21,3],[19,1,19,3],[17,1,17,3],[13,1,13,3],[25,1,25,3],[33,1,33,3],[15,1,15,3],[37,1,37,3],[31,1,31,3],[29,1,29,3],[27,1,27,3],[35,1,35,3],[23,1,23,3]]}
[]
["1.","Minek a mértékegysége a \"col\"?",null,null,null,1,{"$f":"IF(F2=1,\"ü\",\"ű\")","v":"ü"}]
[]
["2.","Minek a mértékegysége a Hz?",null,null,null,1,{"$f":"IF(F4=2,\"ü\",\"ű\")","v":"ű"}]
[]
["3.","Melyik ezek közül a grafikus felhasználói felület?",null,null,null,1,{"$f":"IF(F6=4,\"ü\",\"ű\")","v":"ű"}]
[]
["4.","Melyik egér hasonlít működése szempontjából a mechanikus egérre?",null,null,null,1,{"$f":"IF(F8=4,\"ü\",\"ű\")","v":"ű"}]
[]
["5.","Melyik ütő nyomtató?",null,null,null,1,{"$f":"IF(F10=3,\"ü\",\"ű\")","v":"ű"}]
[]
["6.","Mi fűződik Jánosi Marcell nevéhez?",null,null,null,1,{"$f":"IF(F12=1,\"ü\",\"ű\")","v":"ü"}]
[]
["7.","Két része van, a ROM és a RAM.",null,null,null,1,{"$f":"IF(F14=1,\"ü\",\"ű\")","v":"ü"}]
[]
["8.","Mekkora a memória legkisebb egysége?",null,null,null,1,{"$f":"IF(F16=4,\"ü\",\"ű\")","v":"ű"}]
[]
["9.","Mekkora a DVD mérete?",null,null,null,1,{"$f":"IF(F18=3,\"ü\",\"ű\")","v":"ű"}]
[]
["10.","Milyen távol vannak a winchester lemezeitől az író-olvasó fejek?",null,null,null,1,{"$f":"IF(F20=3,\"ü\",\"ű\")","v":"ű"}]
[]
["11.","Milyen eszköz az érintőképernyő?",null,null,null,1,{"$f":"IF(F22=3,\"ü\",\"ű\")","v":"ű"}]
[]
["12.","Mennyi adat fér egy CD lemezre?",null,null,null,1,{"$f":"IF(F24=1,\"ü\",\"ű\")","v":"ü"}]
[]
["13.","Mikor hozta létre az Intel a porcesszort?",null,null,null,1,{"$f":"IF(F26=2,\"ü\",\"ű\")","v":"ű"}]
[]
["14.","Miért nem terjedt el széles körben a hőnyomtató?",null,null,null,1,{"$f":"IF(F28=3,\"ü\",\"ű\")","v":"ű"}]
[]
["15.","Mekkora a mai HDD-k tárolókapacitása?",null,null,null,1,{"$f":"IF(F30=2,\"ü\",\"ű\")","v":"ű"}]
[]
["16.","Mekkora a 3,5\"-os floppy tárolókapacitása?",null,null,null,1,{"$f":"IF(F32=4,\"ü\",\"ű\")","v":"ű"}]
[]
["17.","Tárolórekeszek összessége?",null,null,null,1,{"$f":"IF(F34=3,\"ü\",\"ű\")","v":"ű"}]
[]
["18.","Melyik eszköznél jelenik meg a sáv?",null,null,null,1,{"$f":"IF(F36=2,\"ü\",\"ű\")","v":"ű"}]
[]
["19.","Mi az a paritásbit?",null,null,null,1,{"$f":"IF(F38=1,\"ü\",\"ű\")","v":"ü"}]
[]
["20.","Melyik funkció kiváltására szolgál a billentyűzeten az \"altGr\" billentyű?",null,null,null,1,{"$f":"IF(F40=3,\"ü\",\"ű\")","v":"ű"}]
[]
["Igaz vagy hamis?",null,null,"(Ha igaz, írj i betűt, ha hamis, akkor h betűt a téglalapba!)"]
[]
["21.","A HDD csatlakozhat SCSI csatlakozóval.",null,null,null,null,{"$f":"IF(F44=\"i\",\"ü\",\"ű\")","v":"ű"}]
[]
["22.","A Draft üzemmód piszkozat minőséget jelent nyomtatáskor.",null,null,null,null,{"$f":"IF(F46=\"i\",\"ü\",\"ű\")","v":"ű"}]
[]
["23.","Az ALU foglamát Neumann János alkotta meg 1845-ben.",null,null,null,null,{"$f":"IF(F48=\"h\",\"ü\",\"ű\")","v":"ű"}]
[]
["24.","Az egerek többnyire PS/2 és USB csatlakozóval csatlakoznak a számítógéphez.",null,null,null,null,{"$f":"IF(F50=\"i\",\"ü\",\"ű\")","v":"ű"}]
[]
["25.","Az írórudas nyomtató egyszerre több sort tud nyomtatni.",null,null,null,null,{"$f":"IF(F52=\"h\",\"ü\",\"ű\")","v":"ű"}]
[]
["26.","A GPU csak 2D-s feladatokat képes ellátni.",null,null,null,null,{"$f":"IF(F54=\"h\",\"ü\",\"ű\")","v":"ű"}]
[]
["27.","A nyomtató kapcsolódhat a számítógéphez IrDA-n vagy Etherneten is.",null,null,null,null,{"$f":"IF(F56=\"i\",\"ü\",\"ű\")","v":"ű"}]
[]
["28.","A videoadapter feladata, hogy átfordítsa a grafikát pixelekké.",null,null,null,null,{"$f":"IF(F58=\"i\",\"ü\",\"ű\")","v":"ű"}]
[]
["29.","A keyboard-ot elsődleges beviteli perifériának nevezzük.",null,null,null,null,{"$f":"IF(F60=\"i\",\"ü\",\"ű\")","v":"ű"}]
[]
["30.","Az egereket működésük szerint öt csoportba soroljuk.",null,null,null,null,{"$f":"IF(F62=\"h\",\"ü\",\"ű\")","v":"ű"}]
[]
["31.","A kontraszt a részletgazdagságot jelző tulajdonság.",null,null,null,null,{"$f":"IF(F64=\"i\",\"ü\",\"ű\")","v":"ű"}]
[]
["32.","Ha a Post Script értelmez nem a nyomtatóba van építve, hanem a PC-n fut,  akkor RIP-nek nevezzük.",null,null,null,null,{"$f":"IF(F66=\"i\",\"ü\",\"ű\")","v":"ű"}]
[]
["33.","Az ALT+F5 billenytűkombináció szolgál egy ablak bezárására.",null,null,null,null,{"$f":"IF(F68=\"h\",\"ü\",\"ű\")","v":"ű"}]
[]
["34.","1 inch=2,54 mm.",null,null,null,null,{"$f":"IF(F70=\"h\",\"ü\",\"ű\")","v":"ű"}]
[]
["35.","A DPI a DVD-re jellemző tulajdonság.",null,null,null,null,{"$f":"IF(F72=\"h\",\"ü\",\"ű\")","v":"ű"}]
[]
["36.","Az optikai egérben egy lézer világít.",null,null,null,null,{"$f":"IF(F74=\"h\",\"ü\",\"ű\")","v":"ű"}]
[]
["37.","A billenytűzet 105-106 billentyűből áll a magyar szabvány szerint.",null,null,null,null,{"$f":"IF(F76=\"h\",\"ü\",\"ű\")","v":"ű"}]
[]
["38.","A régi monitorok Low Radiation-ok voltak.",null,null,null,null,{"$f":"IF(F78=\"h\",\"ü\",\"ű\")","v":"ű"}]
[]
["39.","A 640X480-as felbontás a grafikus képernyőnél jellemző.",null,null,null,null,{"$f":"IF(F80=\"i\",\"ü\",\"ű\")","v":"ű"}]
[]
["40.","Az A4-es papír mérete: 298 X 210 mm",null,null,null,null,{"$f":"IF(F82=\"i\",\"ü\",\"ű\")","v":"ű"}]
[]
[]
["A dolgozat eredménye: (összes pontszám/elért pontszám)",null,null,null,"40/",{"$f":"COUNTIF(G1:G83,\"ü\")","v":5}]
[]
[null,null,null,"A dolgozatra kapott érdemjegy:",{"$f":"VLOOKUP(F85,B91:C95,2)","v":1}]
[]
[]
[]
[null,0,1]
[null,17,2]
[null,25,3]
[null,32,4]
[null,36,5]

{"sheet":"Munka2","index":1,"n_rows":13,"n_cols":20,"rows_kept":13,"cut":false,"hidden":true,"merged":[]}
["1.","2.","3.","4.","5.","6.","7.","8.","9.","10.","11.","12.","13.","14.","15.","16.","17.","18.","19.","20."]
["monitor","ALU","ALU","optikai","hőnyomtató","floppy","memória","8 bit","12 mm vastag","milliméter","beviteli","80 perc",1970,"nem drága","500 MB","144 KB","processzor","DVD","Hibajelző bit.","Elsődleges"]
["nyomtató","CPU","CPU","touchpad","lézer nyomtató","merevlemez","processzor","9 bit","1,2 m átmérőjű","pikométer","kiviteli","120 perc",1971,"nem gyors","500 GB","14,4 MB","logikai egység","merevlemez","Tükörbit.","Másodlagos"]
["winchester","GPU","GPU","opto-mechanikus","mátrix nyomtató","CD","logikai egység","3 bit","0,12 cm vastag","nanométer","be- és kiviteli","800 MB",1972,"nem időtálló","500 TB","144 MB","memória","floppy","Szektorbit.","Harmadlagos"]
["billentyűzet","GUI","GUI","trackball","tintasugaras nyomtató","pendrive","hangkártya","1 bit","0,012 m átmérőjű","centiméter","egyik sem","700 GB",1973,"nem szép","500 KB","1,44 MB","hangkártya","CD","Utolsó bit.","Negyedleges"]
[]
[]
[40]
[1,40,{"$f":"$A$8*B9/100","v":16}]
[2,60,{"$f":"$A$8*B10/100","v":24}]
[3,70,28]
[4,80,32]
[5,90,36]

{"sheet":"Munka3","index":2,"n_rows":0,"n_cols":0,"rows_kept":0,"cut":false,"hidden":false,"merged":[]}